Cogmind - Beta 13 @@@ ROGUE MODE // 2024.04.04 @ 18:51:15 Player: Derauth Result: Destroyed by G-34 Mercenary with Small Laser Performance ------------- Evolutions (1) 500 Regions Visited (2) 400 Robots Destroyed (19) 95 Value Destroyed (578) 578 Prototype IDs (2) 40 Alien Tech Used (0) 0 Bonus (0) 0 TOTAL SCORE: 1613 Bonus ------- None Cogmind --------- Core Integrity 0/400 Matter 160/300 Energy 100/100 System Corruption 2% Temperature Cool (6) Movement Core (200) Ox3 Location -9/Materials Parts ------- > --- POWER (1) -------- (None) > --- PROPULSION (2) --- (None) > --- UTILITY (2) ------ Medium Storage Unit > --- WEAPON (4) ------- (None) > --- INVENTORY (10) --- (None) Peak State ------------ > --- POWER ------------ Ion Engine > --- PROPULSION ------- Compact Wheel Compact Wheel > --- UTILITY ---------- Medium Storage Unit Hacking Suite > --- WEAPON ----------- Grenade Launcher Grenade Launcher Grenade Launcher Rocket Launcher > --- INVENTORY -------- Assault Rifle Light Assault Rifle Grenade Launcher [Rating: 12] Favorites ----------- Power Ion Engine Engine Ion Engine Propulsion Compact Wheel Wheel Compact Wheel Utility Medium Storage Unit Storage Medium Storage Unit Processor Transport Network Coupler Hackware Hacking Suite Weapon Grenade Launcher Energy Gun Medium Laser Ballistic Gun Assault Rifle Launcher Grenade Launcher Build | -11 -10 -9 ------- Run | Yrd Mat Mat Slots Evolved 2 | . . 2 Power . | . . . Propulsion . | . . . Utility . | . . . Weapon 2 | . . 2 Parts Attached 20 | 7 10 3 Power 2 | 1 1 . Engine 2 | 1 1 . Core . | . . . Reactor . | . . . Propulsion 2 | 2 . . Treads . | . . . Leg . | . . . Wheel 2 | 2 . . Hover . | . . . Flight . | . . . Utility 4 | 1 3 . Device . | . . . Storage 2 | 1 1 . Processor 1 | . 1 . Hackware 1 | . 1 . Protection . | . . . Artifact . | . . . Weapon 12 | 3 6 3 Energy Gun 1 | 1 . . Energy Cannon . | . . . Ballistic Gun 4 | 2 2 . Ballistic Cannon . | . . . Launcher 7 | . 4 3 Special Weapon . | . . . Impact Weapon . | . . . Slashing Weapon . | . . . Piercing Weapon . | . . . Special Melee Weapon . | . . . Unidentified Prototypes . | . . . Parts Lost 9 | . 1 8 Power 2 | . 1 1 Propulsion 2 | . . 2 Utility 1 | . . 1 Weapon 4 | . . 4 Highest Loss Streak 8 | . 1 8 To Critical Strikes . | . . . Average Slot Usage (%) 89 | . 92 83 Engine 11 | . 12 9 Wheel 25 | . 28 17 Storage 13 | . 14 11 Processor 2 | . 3 . Hackware 6 | . 4 10 Ballistic Gun 11 | . 15 . Launcher 18 | . 12 35 Naked Turns . | . . . Heaviest Build 28 | 13 21 28 Greatest Support 32 | 32 32 32 Greatest Overweight (x) 4 | . . 4 Average Overweight (x) . | . . . Largest Inventory Capacity 10 | 8 10 10 Average Capacity 9 | 6 9 10 Most Carried 5 | . 5 3 Average Carried 1 | . 2 . Final Capacity 10 | 8 10 10 Final Carried 4 | . 4 . Class Distribution -------------------- 80% | Mutant 19% | Bomber Dominant Class ---------------- Mutant | -10/Materials Bomber | -9/Materials Resources | -11 -10 -9 ----------- Run | Yrd Mat Mat Matter Collected 578 | 270 285 23 Remotely . | . . . Salvage Created 489 | . 380 109 Parts 30 | . 23 7 Haulers Intercepted 2 | . 2 . Recyclers Shooed . | . . . Parts Field Recycled . | . . . Retrieved Matter . | . . . Parts Self-Destructed . | . . . Prevented . | . . . Kills | -11 -10 -9 ------- Run | Yrd Mat Mat Combat Hostiles Destroyed 12 | . 9 3 Guns 2 | . 2 . AOE 10 | . 7 3 Classes Destroyed 7 | . 5 2 Worker 1 | . . 1 Hauler 2 | . 2 . Recycler 1 | . 1 . Operator 2 | . 1 1 Watcher 1 | . 1 . Grunt 10 | . 9 1 Sentry 2 | . . 2 Best Kill Streak 6 | . 6 3 Combat Bots Only 4 | . 4 2 Max Kills in Single Turn 2 | . 2 2 Gunslinging . | . . . Exploded 1 | . 1 1 Melee . | . . . Uniques/NPCs Destroyed . | . . . Combat | -11 -10 -9 -------- Run | Yrd Mat Mat Hostile Shots Fired 127 | . 30 97 Missed 38 | . 13 25 Damage Taken 1137 | . 303 834 Core 504 | . 98 406 Absorbed by Shields . | . . . Core Remaining (%) 80 | 100 60 . Volleys Fired 51 | . 47 4 Largest 4 | . 2 4 Hottest 123 | . 60 123 Shots Fired 86 | . 73 13 Gun 47 | . 47 . Cannon . | . . . Launcher 39 | . 26 13 Special . | . . . Kinetic 47 | . 47 . Thermal . | . . . Explosive 39 | . 26 13 Electromagnetic . | . . . Robot Hit Streak 8 | . 8 6 Robot Miss Streak 6 | . 6 . Penetration Max . | . . . Secondary Targets 1 | . 1 . Max Gunslinging Chain 1 | . 1 . Shots Hit Robots 45 | . 39 6 Core Hits 37 | . 29 8 Critical Kills . | . . . Critical Parts Destroyed . | . . . Critical Strikes . | . . . Melee Attacks . | . . . Impact . | . . . Slashing . | . . . Piercing . | . . . Sneak Attacks . | . . . Combat Hostiles . | . . . Follow-up Attacks . | . . . Damage Inflicted 1565 | . 1309 256 Guns 359 | . 359 . Cannons . | . . . Explosions 1156 | . 950 206 Melee . | . . . Ramming 50 | . . 50 Kinetic 359 | . 359 . Thermal 57 | . . 57 Explosive 1099 | . 950 149 Electromagnetic . | . . . Impact . | . . . Slashing . | . . . Piercing . | . . . Highest Corruption 2 | . 1 2 Average Corruption 1 | . 1 1 Corruption Purged . | . . . Corruption Blocked . | . . . Effects 2 | . 1 1 Matter Fused 1 | . 1 . Energy Discharges 1 | . . 1 Overload Shots . | . . . Overflow Damage 32 | . 32 . Projectiles . | . . . Explosions 32 | . 32 . Melee . | . . . Knockbacks . | . . . Impact . | . . . Kinetic . | . . . Secondary . | . . . Self-Inflicted Damage 53 | . 33 20 Shots 2 | . 2 . Rammed 29 | . . 29 Targets Rammed 29 | . . 29 Kicked . | . . . Crushed . | . . . Highest Temperature 63 | . 25 63 Average Temperature 13 | . 9 24 Received Heat Transfer 366 | . 144 222 Siege Activations . | . . . Robots Corrupted . | . . . Combat Hostiles . | . . . Parts Fried . | . . . Impact Corruptions . | . . . Robots Melted . | . . . Combat Hostiles . | . . . Parts Melted . | . . . Heat Transferred 50 | . . 50 Parts Sabotaged . | . . . Parts Stolen . | . . . Parts Stripped . | . . . Power Chain Reactions . | . . . Alert | -11 -10 -9 ------- Run | Yrd Mat Mat Peak Influence 409 | . 229 409 Initial 84 | . . 84 Average 109 | . 54 269 Maximum Alert Level 2 | . 1 2 Low Security (%) 75 | 100 90 32 Level 1 21 | . 9 57 Level 2 2 | . . 10 Level 3 . | . . . Level 4 . | . . . Level 5 . | . . . High Security . | . . . Max Security . | . . . Squads Dispatched 6 | . 2 4 Investigation 3 | . 2 1 Extermination . | . . . Reinforcement 3 | . . 3 Assault . | . . . Garrison . | . . . Intercept . | . . . Searches Triggered . | . . . Construction Impeded . | . . . Haulers Reinforced . | . . . Active Scanning Responses . | . . . Cargo Convoy Interrupts . | . . . Stealth | -11 -10 -9 --------- Run | Yrd Mat Mat Distress Signals 2 | . . 2 Communications Jammed . | . . . Distress Signals . | . . . Times Spotted 24 | . 13 11 Peak Tracking Total 4 | . 4 4 Tactical Retreats 1 | . . 1 Traps | -11 -10 -9 ------- Run | Yrd Mat Mat Traps Triggered 2 | . 2 . Indirectly . | . . . Trap Hack Attempts . | . . . Triggered . | . . . Disarmed . | . . . Reprogrammed . | . . . Reused . | . . . Traps Extracted . | . . . Installed . | . . . Triggered . | . . . Machines | -11 -10 -9 ---------- Run | Yrd Mat Mat Machines Disabled 5 | . 1 4 Max in Single Turn 2 | . 1 2 Machines Repaired . | . . . Machines Dismantled . | . . . Machines Sabotaged . | . . . Overloaded Fab Kills . | . . . Hacking | -11 -10 -9 --------- Run | Yrd Mat Mat Machines Accessed 6 | . 3 3 Terminals 5 | . 3 2 Fabricators . | . . . Repair Stations . | . . . Recycling Units 1 | . . 1 Scanalyzers . | . . . Garrison Access . | . . . Total Hacks 27 | . 9 18 Successful 20 | . 5 15 Failed 6 | . 4 2 Catastrophic . | . . . Database Lockouts 1 | . . 1 Manual . | . . . Terminals 20 | . 9 11 Fabricators . | . . . Repair Stations . | . . . Recycling Units 7 | . . 7 Scanalyzers . | . . . Garrison Access . | . . . Terminal Hacks 14 | . 5 9 Record 3 | . . 3 Prototype ID Bank 1 | . . 1 Emergency Access Points 1 | . 1 . Terminal Index 1 | . 1 . Alert Level 1 | . 1 . Maintenance Status 1 | . . 1 Transport Status 1 | . . 1 Investigation Status 1 | . . 1 Hauler Manifests 1 | . 1 . Registered Components 1 | . . 1 Registered Prototypes 1 | . . 1 Zone Layout 1 | . 1 . Fabricator Hacks . | . . . Repair Station Hacks . | . . . Recycling Unit Hacks 6 | . . 6 Recycle Component 3 | . . 3 Process 1 | . . 1 Report Inventory 1 | . . 1 Retrieve Matter 1 | . . 1 Scanalyzer . | . . . Garrison Access Hacks . | . . . Unauthorized Hacks . | . . . Terminals . | . . . Fabricators . | . . . Repair Stations . | . . . Recycling Units . | . . . Scanalyzers . | . . . Garrison Access . | . . . Data Cores Recovered 1 | . 1 . Used . | . . . Hacking Detections 6 | . 3 3 Full Trace Events 3 | . 1 2 Feedback Events 1 | . 1 . Corruption 1 | . 1 . Feedback Blocked . | . . . Robot Schematics Acquired . | . . . Robots Built . | . . . Authchips . | . . . Time . | . . . Total Robot Build Rating . | . . . Part Schematics Acquired . | . . . Parts Built . | . . . Authchips . | . . . Time . | . . . Total Part Build Rating . | . . . Parts Repaired . | . . . Time . | . . . Parts Recycled 3 | . . 3 Recycled Matter 40 | . . 40 Retrieved Matter 40 | . . 40 Retrieved Components . | . . . Parts Scanalyzed . | . . . Part Schematics Acquired . | . . . Parts Damaged . | . . . Bothacking | -11 -10 -9 ------------ Run | Yrd Mat Mat Used RIF Installer . | . . . Robots Hacked . | . . . Non-combat . | . . . Combat . | . . . Robot Hacks Applied . | . . . Relay Couplers Released . | . . . Fabnet Peak Effective % . | . . . Robots Rewired . | . . . Allies Hacked . | . . . Hacks Repelled . | . . . Allies | -11 -10 -9 -------- Run | Yrd Mat Mat Total Allies . | . . . Largest Group . | . . . Highest-Rated Group . | . . . Highest-Rated Ally . | . . . Total Orders . | . . . Ally Attacks . | . . . Total Damage . | . . . Kills . | . . . Allies Corrupted . | . . . Allies Melted . | . . . Intel | -11 -10 -9 ------- Run | Yrd Mat Mat Robot Analysis Total . | . . . Derelict Logs Recovered . | . . . Drone Launches . | . . . Drone Recoveries . | . . . Exploration | -11 -10 -9 ------------- Run | Yrd Mat Mat Turns Passed 818 | 48 548 222 Spaces Moved 571 | 38 411 122 Core 4 | 1 . 3 Treads . | . . . Legs . | . . . Wheels 567 | 37 411 119 Hover . | . . . Flight . | . . . Fastest Speed 50 | 50 100 100 Average Speed 100 | 98 100 102 Slowest Speed 250 | 100 100 250 Overloaded Moves . | . . . Propulsion Burnouts . | . . . Robots Hopped . | . . . Cave-ins Triggered . | . . . Exploration Rate (%) 31 | 3 71 21 Regions Visited 2 Branch Regions . Pre-discovered Areas . | . . . Known Exits Taken . | . . . Unknown Exits Taken 2 | 1 1 . Scrap Searched . | . . . Spaces Dug . | . . . Terrain Destroyed 187 | . 112 75 Melee . | . . . Projectile . | . . . AOE 187 | . 112 75 Terrain Rammed . | . . . Walls Destroyed . | . . . Machines Disabled . | . . . Actions | -11 -10 -9 --------- Run | Yrd Mat Mat Total 686 | 45 473 168 Wait 9 | . . 9 Move 569 | 37 410 122 Hop . | . . . Pick Up 6 | . 5 1 Fast Attach 10 | 7 3 . Attach 2 | . . 2 Detach . | . . . Swap 8 | . 7 1 Drop 2 | 1 1 . Fire 51 | . 47 4 Melee . | . . . Ram 29 | . . 29 Kick . | . . . Crush . | . . . Escape Stasis . | . . . Rewire . | . . . Trap . | . . . Miscellaneous . | . . . Route ------- -11/Scrapyard -10/Materials (discovered 3 exits: *Mat x2 / [*Min]) -9/Materials History --------- Turn | Location | Event 29 | -11/Scrapyard | Discovered new exit (range 15) 49 | -11/Scrapyard | Entered Materials 153 | -10/Materials | Discovered new exit (range 15) 300 | -10/Materials | Build established: Mutant 419 | -10/Materials | Discovered new exit (range 18) 550 | -10/Materials | Discovered new exit (range 15) 597 | -10/Materials | Entered another Materials area 597 | -9/Materials | Evolved 2 slots: Weapon x2 616 | -9/Materials | Central database locked down 800 | -9/Materials | Core integrity fell below 50% 815 | -9/Materials | Core integrity fell below 20% 819 | -9/Materials | Destroyed by G-34 Mercenary with Small Laser Last Messages --------------- 00800_ U-05 Engineer lays Concrete. 00802_ Slammed into S-10 Pest. 00802_ U-05 Engineer lays Concrete. 00804_ Slammed into S-10 Pest. 00804_ U-05 Engineer lays Concrete. 00806_ Slammed into S-10 Pest. 00806_ U-05 Engineer lays Concrete. 00808_ Slammed into S-10 Pest. 00808_ Destabilizing: Core damaged (-20). 00808_ U-05 Engineer lays Concrete. 00808_ U-05 Engineer builds a Wall. 00809_ System corrupted: Energy discharge (-30). 00809_ U-05 Engineer lays Concrete. 00810_ U-05 Engineer builds a Wall. 00810_ Slammed into S-10 Pest. 00810_ U-05 Engineer lays Concrete. 00816_ Slammed into S-10 Pest. 00816_ U-05 Engineer lays Concrete. 00818_ Slammed into S-10 Pest. 00818_ U-05 Engineer lays Concrete. Map ----- +----------------------------------------------------+ | ????????????????????????????????# """ #?????????? | | ????????????????????????????????# "Y" ####?"""??? | | ?????????????????????????????#### # # "T???? | | ???????????????????????????? # # # ????? | | ????????????????????????????? # + + ?????? | | ???????????????????????????? #[ # #??????? | | ????????????????????????????"" ###+#### ##???#?? | | ???????????????????????????"""" ### ### ### ##? | | ??????????????????????????""""" ## #? | | ???????????????????????# ?""""" ## T +? | | ???????????????????????# """ # ### #? | | ???????????????????????# /#####???? | | ???????#???????????????########" #???? | | ???????# ????????############ # +???? | | ???????# ???????#! # #???? | | ???????# """????# " #???? | | ???????# """"???# " #???? | | ???????# """????? """ """ " #???? | | ??????## ????? """ """ " #???? | | ??????## ????? """ """ " #???? | | ??????# ????? # """" " [ #???? | | ##########+################ " " "" ########???? | | ###+#### "###??????????? | | u # ## ##????????????? | | u o s# ## #?????????????? | | ???##+#############+###g @# ## #?????????????? | | ???????????# # Y # ## #?????????????? | | ???????????# ## u # ##+########??????? | | ???????????# """ ## u # # #??????? | | ???????????# """"" ## # #] """ #??????? | | ???????????# """"" ## # # """ #??????? | | ???????????# """"" ## # # """ #??????? | | ???????????# """ ## + #" """ #??????? | | ???????????# ## # #T """ #??????? | | ???????????############ # #" #??????? | | ??????????????????????# ####### ##?????? | | ?????????????????????# ###### # ######? | | ???????????????????? #? | | ??????????????????? #? | | ?????????????????? * #? | | ?????????????????##### ###### +####? | | ?????????????????????###+##?????# ???? | | ??????????????????????? ???????## ?? | | ??????????????????????? ????????# # """ [[ #? | | ??????????????????????? ????????# # """ [[ #? | | ??????????????????????? ????????# # """ [! #? | | ??????????????????????? ????????# # #? | | ??????????????????????? ????????# # #? | | ?????????????????????????????????# # #? | | ?????????????????????????????????# ###?#######? | +----------------------------------------------------+ Best States ------------- Heat Dissipation 28 Energy Generation 10 Energy Capacity 250 Matter Stores 300 Matter Capacity 300 Sight Range 16 Terrain Scan Density 10 Evasion (%) 40 Offensive Hacking 10 Item Schematics ----------------- None Robot Schematics ------------------ None Fabricated ------------ Nothing Alien Tech Used ----------------- None Achievements -------------- None Challenges ------------ None Game ------ Seed CoordinationFrostThrower Manual? 0 Play Time 00:14:45 Cumulative 10.8 hours Start 2024.04.04 @ 17:28:54 End 2024.04.04 @ 18:51:15 Sessions 1 Manual Loads 0 Difficulty Rogue Special Mode None Game No. 15 Rogue 14 Adventurer 1 Explorer 0 Win Type - Total 0 Types 0/0/0/0/0/0/0/0/0 Lore% 10 Gallery% 23 Achievement% 18 Wizard Run 0 Options --------- Layout 1 ASCII 0 Keyboard 0 Movement Mouse Keybinds 0 Fullscreen 1 Font 32/Terminus Map View 50x35 Zoom Use 0% Tactical HUD 1 Map Filters NONE Filters NONE Steam 1 RUN: 0a3967cf-e332-461f-b43d-10f2db23dd99